Cogmind - Beta 15 @@@ ROGUE MODE // 2025.05.16 @ 22:00:40 // Winter2019/RPGLIKE Player: Nalesnig Result: Destroyed by X-87 Electro with Compact HERF Cannon Performance ------------- Evolutions (6) 3000 Regions Visited (23) 4600 Robots Destroyed (297) 1485 Value Destroyed (11781) 11781 Prototype IDs (75) 1500 Alien Tech Used (0) 0 Bonus (3960) 3960 TOTAL SCORE: 26326 Bonus ------- High Alert Combat Kills 765 Follower Combat Kills 640 Entered Garrisons 200 Entered DSFs 500 Aligned with FarCom 300 Met Data Miner 300 Acquired ECA 300 Met Warlord at Base 500 MAIN.C Attacked Warlord 500 Met R17 at Cetus 500 Friendly Fire -545 Cogmind --------- Core Integrity 0/1200 Matter 286/300 Energy 24/2250 System Corruption 8% Temperature Cool (0) Movement Hovering (120) Ox1 Location -4/Warlord Parts ------- > --- POWER (2) -------- Vortex Chain Reactor > --- PROPULSION (5) --- Linear Gravjet Combat Gravmag System Combat Gravmag System Combat Gravmag System Cooled Antigrav System > --- UTILITY (6) ------ Superbattery Makeshift Terrain Scanner Advanced Transmission Jammer Experimental Phase Shifter Advanced Force Field > --- WEAPON (5) ------- Variable Charge Gun Quantum Rifle Heavy Phase Cannon Improved Datajack > --- INVENTORY (6) ---- Encrypted Comm Array Improved Hardlight Generator Vortex Rail (40) Heavy Shock Bomb Launcher Heavy Rocket Launcher Force Lance Peak State ------------ > --- POWER ------------ Vortex Chain Reactor > --- PROPULSION ------- Linear Gravjet Combat Gravmag System Combat Gravmag System Combat Gravmag System Cooled Antigrav System > --- UTILITY ---------- Advanced Cooling System Superbattery Makeshift Terrain Scanner Advanced Transmission Jammer Experimental Phase Shifter Advanced Force Field > --- WEAPON ----------- Quantum Rifle Long-range Proton Cannon Heavy Phase Cannon RU-N14's Throwing Claymores v3 > --- INVENTORY -------- Encrypted Comm Array Improved Hardlight Generator Thermic Laser Heavy Shock Bomb Launcher Heavy Rocket Launcher Force Lance [Rating: 133] Favorites ----------- Power Heavy Ion Engine Engine Heavy Ion Engine Power Core Neutrino Core Reactor Particle Reactor Propulsion Combat Gravmag System Treads Light Treads Leg Flexi-carbon Leg Hover Unit Combat Gravmag System Flight Unit Cooled Impulse Thruster Utility Superbattery Device Hardlight Generator Storage Superbattery Processor Visual Processing Unit Protection Propulsion Shielding Weapon Variable Charge Gun Energy Gun Variable Charge Gun Energy Cannon Long-range Proton Cannon Ballistic Gun Assault Rifle Ballistic Cannon Magnetic Acceleration Cannon Launcher Rocket Launcher Special Weapon RU-N14's Throwing Claymores v3 Impact Weapon Heavy Flail Slashing Weapon Phasing Sabre Piercing Weapon Force Lance Special Melee Weapon Improved Datajack Build | -11 -10 -10 -9 -9 -9 -8 -8 -7 -7 -7 -7 -7 -7 -6 -6 -6 -5 -5 -5 -4 -4 -4 -4 ------- Run | Yrd Mat Min Mat Min Exi Min Mat Fac Gar Fac Low Low Dat Pro Fac DSF Fac Ext Cet Fac Upp Upp War Slots Evolved 14 | 3 . 1 1 1 . . . 1 2 1 1 . . . . 1 . . . 1 . . 1 Power 1 | . . . . . . . . . 1 . . . . . . . . . . . . . . Propulsion 4 | 1 . . . . . . . . 1 . . . . . . 1 . . . 1 . . . Utility 5 | 1 . 1 . 1 . . . . . 1 1 . . . . . . . . . . . . Weapon 4 | 1 . . 1 . . . . 1 . . . . . . . . . . . . . . 1 Parts Attached 87 | 5 3 . 12 5 1 . 11 3 9 7 2 . . 2 4 5 . 1 2 3 1 3 8 Power 10 | 1 . . 1 . . . 1 . 1 2 1 . . . . 1 . . 1 . . . 1 Engine 6 | 1 . . 1 . . . 1 . 1 2 . . . . . . . . . . . . . Core 1 | . . . . . . . . . . . 1 . . . . . . . . . . . . Reactor 3 | . . . . . . . . . . . . . . . . 1 . . 1 . . . 1 Propulsion 22 | 2 . . 4 2 . . 3 . 1 1 . . . . 2 4 . . . 1 . . 2 Treads 6 | 2 . . 4 . . . . . . . . . . . . . . . . . . . . Leg 2 | . . . . 2 . . . . . . . . . . . . . . . . . . . Wheel . | . . . . . . . . . . . . . . . . . . . . . . . . Hover 13 | . . . . . . . 3 . 1 1 . . . . 2 4 . . . 1 . . 1 Flight 1 | . . . . . . . . . . . . . . . . . . . . . . . 1 Utility 17 | . 3 . 2 1 1 . 1 . 2 1 1 . . . . . . . . 1 1 1 2 Device 13 | . . . 2 1 . . 1 . 2 1 1 . . . . . . . . 1 1 1 2 Storage 1 | . . . . . 1 . . . . . . . . . . . . . . . . . . Processor 1 | . 1 . . . . . . . . . . . . . . . . . . . . . . Hackware . | . . . . . . . . . . . . . . . . . . . . . . . . Protection 2 | . 2 . . . . . . . . . . . . . . . . . . . . . . Artifact . | . . . . . . . . . . . . . . . . . . . . . . . . Weapon 38 | 2 . . 5 2 . . 6 3 5 3 . . . 2 2 . . 1 1 1 . 2 3 Energy Gun 18 | 1 . . 2 . . . 5 1 1 3 . . . 1 1 . . . 1 . . 1 1 Energy Cannon 5 | . . . 2 . . . . 1 1 . . . . . . . . . . . . 1 . Ballistic Gun 1 | 1 . . . . . . . . . . . . . . . . . . . . . . . Ballistic Cannon 3 | . . . . 1 . . . . 2 . . . . . . . . . . . . . . Launcher 4 | . . . 1 . . . . 1 1 . . . . 1 . . . . . . . . . Special Weapon 1 | . . . . . . . . . . . . . . . . . . . . . . . 1 Impact Weapon 3 | . . . . 1 . . 1 . . . . . . . 1 . . . . . . . . Slashing Weapon 1 | . . . . . . . . . . . . . . . . . . 1 . . . . . Piercing Weapon 1 | . . . . . . . . . . . . . . . . . . . . 1 . . . Special Melee Weapon 1 | . . . . . . . . . . . . . . . . . . . . . . . 1 Unidentified Prototypes 13 | . . . 2 . . . 2 . . 1 . . . . . . . . 1 . . . 7 Corrupted Parts 2 | . . . . . . . . . . . . . . . . . . . 2 . . . . System Corruption 13 | . . . . . . . . . . . . . . . . . . . 13 . . . . Parts Lost 2 | . . . 2 . . . . . . . . . . . . . . . . . . . . Power . | . . . . . . . . . . . . . . . . . . . . . . . . Propulsion . | . . . . . . . . . . . . . . . . . . . . . . . . Utility 1 | . . . 1 . . . . . . . . . . . . . . . . . . . . Weapon 1 | . . . 1 . . . . . . . . . . . . . . . . . . . . Highest Loss Streak 1 | . . . 1 . . . . . . . . . . . . . . . . . . . . To Critical Strikes . | . . . . . . . . . . . . . . . . . . . . . . . . Average Backups 2 | . . . 1 1 2 2 2 2 2 3 3 3 3 3 3 3 3 3 3 3 4 5 6 Power . | . . . . . . . . . . . . . . . . . . . . . . . . Propulsion . | . . . . . . . . . . . . . . . . . . . . . . . . Utility . | . . . . . . . . . . . . . . . . . . . . . . . 1 Weapon 2 | . . . . 1 2 2 2 2 2 3 3 3 3 3 3 3 3 3 3 3 4 4 4 Tool/Special . | . . . . . . . . . . . . . . . . . . . . . . . . Unused Backups . | . . . . . . . . . . . . . . . . . . . . . . . . Power . | . . . . . . . . . . . . . . . . . . . . . . . . Propulsion . | . . . . . . . . . . . . . . . . . . . . . . . . Utility . | . . . . . . . . . . . . . . . . . . . . . . . . Weapon . | . . . . . . . . . . . . . . . . . . . . . . . . Tool/Special . | . . . . . . . . . . . . . . . . . . . . . . . . Average Slot Usage (%) 98 | . 95 87 95 100 100 100 99 100 100 100 100 100 84 94 100 99 100 100 100 97 100 99 96 Engine 7 | . 14 12 11 10 10 10 9 9 9 14 11 6 6 6 6 4 . . . . . . . Reactor 2 | . . . . . . . . . . . . . . . . 1 6 6 7 11 11 11 8 Treads 4 | . 28 25 24 5 . . . . . . . . . . . . . . . . . . . Leg 2 | . . . . 15 20 20 4 . . . . . . . . . . . . . . . . Hover 15 | . . . . . . . 15 19 18 21 20 20 20 19 20 20 25 25 25 26 29 29 28 Device 25 | . . . 18 23 24 20 29 28 26 25 32 33 33 33 33 32 31 31 31 29 29 28 28 Storage 5 | . . . . . 5 10 10 9 8 7 6 6 6 6 6 6 6 6 6 5 5 5 5 Processor 2 | . 8 12 11 10 10 10 . . . . . . . . . . . . . . . . . Protection 1 | . 14 12 2 . . . . . . . . . . . . . . . . . . . . Energy Gun 12 | . 14 12 3 . . . 17 13 15 14 13 13 3 13 18 19 18 17 11 15 17 11 11 Energy Cannon 8 | . . . 19 21 20 20 2 8 8 7 6 6 6 6 6 6 6 6 6 5 5 10 10 Ballistic Gun 1 | . 14 12 1 . . . . . . . . . . . . . . . . . . . . Ballistic Cannon 2 | . . . . . . . . 6 10 7 6 4 . . . . . . . . . . . Launcher 1 | . . . 2 1 . 7 . . 1 . . 1 1 1 1 . . . 6 . . . . Impact Weapon 2 | . . . . 8 9 2 9 2 . . . . . . . . . . . . . . . Peak Build Rating 133 | 5 8 8 23 30 37 37 41 45 71 76 82 83 83 83 85 95 95 96 101 109 111 116 133 Average Rating 59 | 3 7 8 18 26 34 37 38 42 51 72 80 82 68 79 82 87 95 95 95 104 110 111 123 On Entrance 63 | . 5 8 8 23 30 37 37 41 45 70 76 82 83 83 81 85 95 95 95 100 109 111 116 Naked Turns . | . . . . . . . . . . . . . . . . . . . . . . . . Heaviest Build 91 | 9 11 10 26 26 29 30 30 42 62 65 64 65 65 65 63 67 67 67 73 77 77 91 91 Greatest Support 86 | 40 40 40 46 44 40 40 40 16 27 44 44 44 44 44 46 72 72 72 72 86 86 86 86 Greatest Overweight (x) 3 | . . . 1 1 . . 3 2 2 2 1 1 1 1 1 1 . . 1 1 . 1 1 Average Overweight (x) . | . . . . . . . . 1 1 1 1 1 1 1 1 . . . . . . . 1 Largest Inventory Capacity 6 | 1 1 2 4 4 4 4 4 4 4 4 4 4 4 5 5 5 5 5 5 6 6 6 6 Average Capacity 4 | 1 1 2 3 4 4 4 4 4 4 4 4 4 4 4 5 5 5 5 5 5 6 6 6 Most Carried 6 | . 1 1 4 4 4 4 4 4 4 4 4 4 4 5 5 5 5 5 5 6 6 6 6 Average Carried 3 | . . 1 2 4 4 4 4 2 2 4 3 4 4 4 5 5 5 4 5 5 5 5 5 Final Capacity 6 | 1 1 2 4 4 4 4 4 4 4 4 4 4 4 5 5 5 5 5 5 6 6 6 6 Final Carried 6 | . 1 1 4 4 4 4 4 2 4 4 4 4 4 5 5 5 5 5 5 6 6 6 6 Class Distribution -------------------- 33% | Gunner 19% | Mutant 16% | Assassin 16% | Skirmisher 5% | Scavenger-Gunner Dominant Class ---------------- Mutant | -10/Materials Mutant | -10/Mines Mutant | -9/Materials Mutant | -9/Mines Mutant | -9/Exiles Skirmisher | -8/Mines Assassin | -8/Materials Skirmisher | -7/Factory Skirmisher | -7/Garrison Gunner | -7/Factory Gunner | -7/Lower Caves Gunner | -7/Lower Caves Mutant | -7/Data Miner Gunner | -6/Proximity Caves Gunner | -6/Factory Gunner | -6/DSF Gunner | -5/Factory Gunner | -5/Extension Gunner | -5/Cetus Scavenger-Gunner | -4/Factory Scavenger-Gunner | -4/Upper Caves Scout | -4/Upper Caves Skirmisher | -4/Warlord Resources | -11 -10 -10 -9 -9 -9 -8 -8 -7 -7 -7 -7 -7 -7 -6 -6 -6 -5 -5 -5 -4 -4 -4 -4 ----------- Run | Yrd Mat Min Mat Min Exi Min Mat Fac Gar Fac Low Low Dat Pro Fac DSF Fac Ext Cet Fac Upp Upp War Matter Collected 3422 | 250 181 . 215 60 . 93 160 484 541 411 145 47 . 120 88 70 . 20 151 70 48 92 176 Remotely . | . . . . . . . . . . . . . . . . . . . . . . . . Salvage Created 10826 | . 509 . 1247 116 . 215 2456 625 387 1009 313 273 . 607 183 91 . 565 811 601 371 352 95 Parts 561 | . 51 7 70 6 . 16 123 36 38 53 19 10 . 16 11 3 . 25 32 23 9 7 6 Haulers Intercepted 15 | . 2 . 5 . . . 5 . . 3 . . . . . . . . . . . . . Recyclers Shooed 5 | . . . 2 . . 1 1 . . . . . . . . . . 1 . . . . . Parts Field Recycled . | . . . . . . . . . . . . . . . . . . . . . . . . Retrieved Matter . | . . . . . . . . . . . . . . . . . . . . . . . . Parts Self-Destructed 38 | . . . . . . . . . . . 7 4 . 9 . . . . . . 5 13 . Prevented 24 | . . . . . . . . . . . 11 1 . 7 . . . . . . 4 1 . Kills | -11 -10 -10 -9 -9 -9 -8 -8 -7 -7 -7 -7 -7 -7 -6 -6 -6 -5 -5 -5 -4 -4 -4 -4 ------- Run | Yrd Mat Min Mat Min Exi Min Mat Fac Gar Fac Low Low Dat Pro Fac DSF Fac Ext Cet Fac Upp Upp War Combat Hostiles Destroyed 216 | . 11 3 25 4 . 9 39 16 23 13 10 9 . 10 7 2 . 7 12 7 3 5 1 Melee 1 | . . . . . . 1 . . . . . . . . . . . . . . . . . Guns 87 | . 9 3 10 . . . 29 4 1 7 3 6 . 2 . 1 . 1 . 4 2 4 1 Cannons 74 | . . . 14 4 . 3 4 8 15 4 7 . . 5 1 1 . 1 4 2 1 . . AOE 29 | . 2 . . . . 3 . 3 6 . . 3 . 2 5 . . . 5 . . . . Classes Destroyed 23 | . 8 . 2 3 . 1 3 2 . . 1 . . . . . . 1 . . 1 . 1 Worker 15 | . 1 . 1 2 . . 9 . . 2 . . . . . . . . . . . . . Builder 9 | . 3 . . . . . 5 1 . . . . . . . . . . . . . . . Tunneler 5 | . . . . 1 . 2 1 . . . . . . . 1 . . . . . . . . Hauler 15 | . 2 . 5 . . . 5 . . 3 . . . . . . . . . . . . . Recycler 11 | . 1 . 4 . . . 2 . . 3 . . . . . . . 1 . . . . . Minesweeper 2 | . . . . . . . . . . . . . . . . . . . . . 2 . . Mechanic 1 | . . . . . . . 1 . . . . . . . . . . . . . . . . Operator 5 | . 1 . . . . . 1 . . 1 . . . . . . . 1 . 1 . . . Drone 1 | . . . . . . . . . . . 1 . . . . . . . . . . . . Watcher 19 | . 3 . 3 . . . 3 . . 4 . . . . 1 . . 1 2 2 . . . Swarmer 47 | . 9 3 3 . . 6 4 2 5 4 3 1 . 1 4 . . . . 1 . 1 . Grunt 82 | . 2 . 15 1 . 2 20 3 17 3 3 1 . 7 2 1 . . 3 1 . 1 . Brawler 8 | . . . 1 1 . . . 1 . 2 . 1 . . . 1 . . . . . 1 . Duelist 10 | . . . . . . 1 2 1 . . 1 1 . 1 1 . . . . 1 . 1 . Sentry 32 | . . . 6 . . . 7 3 1 3 1 1 . 1 . . . 5 . 2 1 1 . Demolisher 1 | . . . . 1 . . . . . . . . . . . . . . . . . . . Specialist 6 | . . . . . . . 4 2 . . . . . . . . . . . . . . . Hunter 9 | . . . . . . . 2 2 . . 1 . . . . . . 1 1 . 2 . . Programmer 5 | . . . . . . . . 1 1 1 . . . . . . . . . 2 . . . Heavy 1 | . . . . . . . . 1 . . . . . . . . . . . . . . . Behemoth 1 | . . . . . . . . . . . . . . . . . . 1 . . . . . Cetus Guard 8 | . . . . . . . . . . . . . . . . . . . 8 . . . . Assembled 1 | . . . . 1 . . . . . . . . . . . . . . . . . . . Thug 4 | . . . . . . . . . . . . 4 . . . . . . . . . . . Mutant 1 | . . . . . . . . . . . . . . . . . . . . . . . 1 Best Kill Streak 11 | . 8 2 5 2 . 4 11 5 7 6 4 5 . 3 4 2 . 4 5 3 3 4 1 Combat Bots Only 7 | . 6 2 4 2 . 4 6 5 7 2 4 5 . 3 4 2 . 4 4 3 2 4 1 Max Kills in Single Turn 3 | . 3 1 2 1 . 2 3 2 2 2 2 2 . 1 3 1 . 1 2 1 1 1 1 Gunslinging 1 | . 1 . . . . . 1 . . . . . . . . . . . . . . . . Exploded 3 | . 2 . . . . 1 . 1 2 . . 2 . 1 3 . . . 2 . . . . Melee 1 | . . . . . . 1 . . . . . . . . . . . . . . . . . Uniques/NPCs Destroyed . | . . . . . . . . . . . . . . . . . . . . . . . . Combat | -11 -10 -10 -9 -9 -9 -8 -8 -7 -7 -7 -7 -7 -7 -6 -6 -6 -5 -5 -5 -4 -4 -4 -4 -------- Run | Yrd Mat Min Mat Min Exi Min Mat Fac Gar Fac Low Low Dat Pro Fac DSF Fac Ext Cet Fac Upp Upp War Hostile Shots Fired 1218 | . 76 9 114 4 . 58 158 98 88 94 23 46 . 35 7 5 . 27 49 52 22 15 238 Missed 446 | . 17 4 33 1 . 15 54 33 29 34 6 15 . 16 3 2 . 8 18 20 9 8 121 Hits 772 | . 59 5 81 3 . 43 104 65 59 60 17 31 . 19 4 3 . 19 31 32 13 7 117 Melee 21 | . . . 3 . . . 6 . . 6 . 1 . . . . . . . . . 1 4 Projectile 751 | . 59 5 78 3 . 43 98 65 59 54 17 30 . 19 4 3 . 19 31 32 13 6 113 AOE 7 | . . . . 1 . . . 2 1 . . . . . . . . . . 3 . . . Critical Strikes 39 | . . . 2 . . . 6 . 1 1 1 3 . . . . . 2 7 1 . 1 14 Damage Taken 9859 | . 551 38 789 67 . 261 1565 1091 602 370 143 403 . 214 31 69 . 360 493 1061 120 110 1521 Core 7911 | . 419 29 591 53 . 199 1306 909 471 291 118 317 . 170 25 69 . 285 392 865 91 94 1217 Absorbed by Shields 3032 | . . . 144 8 . 172 432 244 216 212 68 120 . 76 16 12 . 84 124 96 78 36 894 Redirected to Core 6289 | . 370 22 473 46 . 170 853 642 427 260 84 306 . 155 15 . . 266 350 727 91 51 981 Redirected to Shielding 52 | . 6 2 44 . . . . . . . . . . . . . . . . . . . . Ignored by Resistances 1804 | . . . 85 2 . 43 141 276 82 105 35 46 . 31 13 21 . 97 156 131 54 29 457 Regen/Repaired (Parts) 19 | . . . . . . . 19 . . . . . . . . . . . . . . . . Core Remaining (%) 89 | 100 . 73 . . . 92 65 . . . . . . 100 . 100 . . 97 . . . . Volleys Fired 675 | . 49 9 99 4 . 31 131 56 62 45 18 19 . 24 12 3 . 35 21 25 11 12 9 Largest 4 | . 2 2 2 2 . 2 2 4 4 4 4 4 . 4 4 4 . 4 4 4 4 4 3 Hottest 575 | . 60 60 136 136 . 136 136 228 269 275 575 531 . 531 316 316 . 316 287 471 321 481 259 Shots Fired 1548 | . 98 17 181 8 . 57 257 129 185 141 37 55 . 58 19 10 . 65 46 86 46 42 11 Gun 854 | . 98 17 64 . . . 222 43 88 58 16 35 . 29 6 7 . 30 13 61 34 31 2 Cannon 653 | . . . 117 8 . 52 35 79 90 83 21 17 . 24 11 3 . 35 21 25 12 11 9 Launcher 41 | . . . . . . 5 . 7 7 . . 3 . 5 2 . . . 12 . . . . Special . | . . . . . . . . . . . . . . . . . . . . . . . . Kinetic 215 | . 48 8 24 . . . . 49 42 41 3 . . . . . . . . . . . . Thermal 683 | . . . 149 8 . 52 64 30 54 58 16 35 . 29 6 7 . 30 13 61 34 34 3 Explosive 20 | . . . . . . 5 . 7 4 . . . . 1 2 . . . 1 . . . . Electromagnetic 630 | . 50 9 8 . . . 193 43 85 42 18 20 . 28 11 3 . 35 32 25 12 8 8 Robot Hit Streak 41 | . 9 1 16 4 . 6 21 11 11 17 14 41 . 34 21 10 . 18 22 18 36 19 8 Robot Miss Streak 5 | . 4 3 5 1 . 5 5 4 4 2 2 1 . 1 1 . . 2 1 3 1 1 2 Penetration Max 1 | . . . . . . . . 1 . . . . . . . . . . . . . . . Secondary Targets 13 | . 4 1 1 . . . 7 . . . . . . . . . . . . . . . . Max Gunslinging Chain 1 | . 1 1 1 . . . 1 . . . . . . . . . . . . . . . . Shots Hit Robots 986 | . 42 4 115 9 . 28 195 78 85 79 23 45 . 49 15 8 . 43 22 68 32 28 18 Core Hits 448 | . 26 3 48 4 . 15 86 35 36 29 13 18 . 16 11 4 . 18 31 23 14 13 5 Critical Kills 9 | . 1 . 1 . . . 1 2 4 . . . . . . . . . . . . . . Critical Parts Destroyed 13 | . . . . 2 . . 1 5 5 . . . . . . . . . . . . . . Critical Strikes 52 | . 1 . 2 2 . . 8 10 11 6 . . . . 1 . . 2 1 2 3 3 . Burn 20 | . . . 1 . . . 4 1 1 1 . . . . 1 . . 2 1 2 3 3 . Meltdown 2 | . . . 1 . . . 1 . . . . . . . . . . . . . . . . Destroy 18 | . 1 . . . . . . 7 10 . . . . . . . . . . . . . . Blast 3 | . . . . . . . . . . 3 . . . . . . . . . . . . . Corrupt 6 | . . . . . . . 2 2 . 2 . . . . . . . . . . . . . Smash 3 | . . . . 2 . . 1 . . . . . . . . . . . . . . . . Melee Attacks 48 | . . . . 7 . 3 18 . . . . . . . 1 . . . . 7 . . 12 Impact 29 | . . . . 7 . 3 18 . . . . . . . 1 . . . . . . . . Slashing 1 | . . . . . . . . . . . . . . . . . . . . 1 . . . Piercing 6 | . . . . . . . . . . . . . . . . . . . . 6 . . . Sneak Attacks 14 | . . . . 4 . . 4 . . . . . . . . . . . . . . . 6 Combat Hostiles . | . . . . . . . . . . . . . . . . . . . . . . . . Follow-up Attacks . | . . . . . . . . . . . . . . . . . . . . . . . . Damage Inflicted 30141 | . 734 44 2181 452 . 902 5448 1988 2640 2794 897 1585 . 1697 1109 211 . 1212 2324 1873 862 986 202 Guns 13386 | . 586 44 654 . . . 3365 506 635 1416 335 1038 . 757 163 146 . 425 142 1513 664 927 70 Cannons 10350 | . . . 1501 134 . 611 562 1064 1046 1378 484 349 . 656 368 65 . 763 648 332 198 59 132 Explosions 5488 | . 132 . 21 . . 229 1005 418 959 . 78 198 . 284 578 . . 24 1534 28 . . . Melee 889 | . . . . 318 . 55 516 . . . . . . . . . . . . . . . . Ramming 28 | . 16 . 5 . . 7 . . . . . . . . . . . . . . . . . Kinetic 2224 | . 291 13 247 . . . . 541 415 651 66 . . . . . . . . . . . . Thermal 14356 | . 132 . 1856 134 . 611 2117 358 533 1416 413 1038 . 820 382 146 . 425 801 1513 664 927 70 Explosive 1906 | . . . . . . 229 . 418 684 . . . . 130 359 . . . 86 . . . . Electromagnetic 10738 | . 295 31 73 . . . 2815 671 1008 727 418 547 . 747 368 65 . 787 1437 360 198 59 132 Impact 889 | . . . . 318 . 55 516 . . . . . . . . . . . . . . . . Slashing . | . . . . . . . . . . . . . . . . . . . . . . . . Piercing . | . . . . . . . . . . . . . . . . . . . . . . . . Highest Corruption 13 | . 2 2 . . . . . . 2 7 7 7 7 7 . . . . 13 2 2 2 7 Average Corruption 3 | . 1 2 . . . . . . 1 4 7 7 7 7 . . . . 7 1 2 2 3 Corruption Purged . | . . . . . . . . . . . . . . . . . . . . . . . . Corruption Blocked . | . . . . . . . . . . . . . . . . . . . . . . . . Effects 134 | . 14 4 . . . . . . 11 34 11 12 2 21 . . . . 2 5 6 7 5 Message Errors 29 | . 2 1 . . . . . . 1 9 3 5 . 3 . . . . 1 1 1 . 2 Matter Fused 26 | . 1 1 . . . . . . 2 9 2 2 . 4 . . . . . 1 . 2 2 Heat Flow Errors 10 | . . . . . . . . . 2 4 1 . . 2 . . . . . . 1 . . Energy Discharges 16 | . 7 . . . . . . . . 1 . . 2 1 . . . . . 1 1 3 . Parts Rejected 1 | . . . . . . . . . . . . . . 1 . . . . . . . . . Parts Fused 3 | . . . . . . . . . . 2 . . . 1 . . . . . . . . . Data Loss (minor) 22 | . 1 . . . . . . . 1 6 1 3 . 8 . . . . 1 . . . 1 Data Loss (major) 9 | . . 1 . . . . . . 4 . 1 1 . . . . . . . . 1 1 . Misfires 8 | . 2 . . . . . . . 1 1 1 . . 1 . . . . . . 2 . . Alerts 5 | . . . . . . . . . . 1 1 . . . . . . . . 2 . 1 . Weapon Failures 5 | . 1 1 . . . . . . . 1 1 1 . . . . . . . . . . . Overload Shots 29 | . . . . . . . . . . 14 2 6 . 2 . . . . . 1 . 4 . Effects 1 | . . . . . . . . . . 1 . . . . . . . . . . . . . Heat Surge 1 | . . . . . . . . . . 1 . . . . . . . . . . . . . Overflow Damage 964 | . 9 . 12 258 . 19 438 . 32 20 . . . 44 36 . . 8 64 . 24 . . Projectiles 162 | . . . 12 . . 5 25 . . 20 . . . 25 10 . . 8 33 . 24 . . Explosions 163 | . 9 . . . . 9 37 . 32 . . . . 19 26 . . . 31 . . . . Melee 639 | . . . . 258 . 5 376 . . . . . . . . . . . . . . . . Knockbacks 8 | . . . . 1 . . 3 2 1 1 . . . . . . . . . . . . . Impact 4 | . . . . 1 . . 3 . . . . . . . . . . . . . . . . Kinetic 4 | . . . . . . . . 2 1 1 . . . . . . . . . . . . . Secondary . | . . . . . . . . . . . . . . . . . . . . . . . . Self-Inflicted Damage 345 | . 52 . . . . . 199 . 36 . . 13 . 1 . . . . . 44 . . . Shots 13 | . 2 . . . . . 6 . 2 . . 1 . 1 . . . . . 1 . . . Rammed 7 | . 3 . 4 . . . . . . . . . . . . . . . . . . . . Targets Rammed 8 | . 3 . 4 . . 1 . . . . . . . . . . . . . . . . . Kicked 1 | . . . . . . 1 . . . . . . . . . . . . . . . . . Crushed . | . . . . . . . . . . . . . . . . . . . . . . . . Highest Temperature 749 | . 40 . 318 90 . 396 91 345 325 484 511 589 . 343 99 39 . 251 72 486 228 749 269 Average Temperature 123 | . 15 . 92 35 . 210 22 136 106 134 190 167 . 68 56 26 . 87 26 197 104 199 96 Received Heat Transfer 1963 | . 6 . 367 6 . 123 480 6 230 32 63 191 . 91 . . . 46 21 88 12 22 179 Effects 39 | . . . 5 . . 2 . 2 . 8 6 4 . . . . . . . 5 . 7 . Shutdowns 8 | . . . . . . 1 . 1 . . 1 1 . . . . . . . 2 . 2 . Energy Bleed 4 | . . . 1 . . 1 . 1 . . . . . . . . . . . 1 . . . Interference 16 | . . . 4 . . . . . . 6 . 3 . . . . . . . 1 . 2 . Matter Decay 3 | . . . . . . . . . . 1 1 . . . . . . . . . . 1 . Short Circuit 2 | . . . . . . . . . . . 1 . . . . . . . . . . 1 . Damage (minor) 3 | . . . . . . . . . . 1 1 . . . . . . . . . . 1 . Damage (major) 3 | . . . . . . . . . . . 2 . . . . . . . . 1 . . . Siege Activations . | . . . . . . . . . . . . . . . . . . . . . . . . Martial Activations . | . . . . . . . . . . . . . . . . . . . . . . . . Shielding Activations . | . . . . . . . . . . . . . . . . . . . . . . . . Robots Disrupted 3 | . . . . . . . 2 . . 1 . . . . . . . . . . . . . Combat Hostiles 3 | . . . . . . . 2 . . 1 . . . . . . . . . . . . . Robots Corrupted 27 | . . . . 1 . 1 9 1 1 2 . . . 1 1 . . 5 4 1 . . . Combat Hostiles 21 | . . . . . . 1 5 1 1 2 . . . 1 1 . . 5 3 1 . . . Parts Fried 49 | . . . . 1 . 1 23 1 2 1 2 . . 2 1 . . 9 6 . . . . Impact Corruptions 18 | . . . . 6 . 1 11 . . . . . . . . . . . . . . . . Robots Melted 4 | . . . 1 . . 1 1 . . . . . . . . . . . . . . 1 . Combat Hostiles 4 | . . . 1 . . 1 1 . . . . . . . . . . . . . . 1 . Parts Melted 48 | . . . 6 . . 2 3 1 1 2 1 3 . 2 1 . . 7 . 7 6 6 . Heat Transferred 22340 | . 250 . 3676 222 . 999 3096 629 803 1884 533 1286 . 1075 462 261 . 970 874 2334 1405 1507 74 Parts Sabotaged . | . . . . . . . . . . . . . . . . . . . . . . . . Parts Stolen . | . . . . . . . . . . . . . . . . . . . . . . . . Parts Stripped . | . . . . . . . . . . . . . . . . . . . . . . . . Power Chain Reactions 25 | . 2 . 1 . . . 11 . 2 . 1 . . 1 2 . . 1 3 1 . . . Alert | -11 -10 -10 -9 -9 -9 -8 -8 -7 -7 -7 -7 -7 -7 -6 -6 -6 -5 -5 -5 -4 -4 -4 -4 ------- Run | Yrd Mat Min Mat Min Exi Min Mat Fac Gar Fac Low Low Dat Pro Fac DSF Fac Ext Cet Fac Upp Upp War Maximum Alert Level 4 | . . . 1 . . . 2 1 4 3 . . . . . . . . 1 1 . . . Low Security (%) 54 | 100 100 100 79 100 . 100 18 59 . . . . . . 100 100 100 100 61 95 . . . Level 1 11 | . . . 20 . . . 15 40 14 . . . . . . . . . 38 4 . . . Level 2 17 | . . . . . . . 65 . 34 1 . . . . . . . . . . . . . Level 3 13 | . . . . . . . . . 26 98 . . . . . . . . . . . . . Level 4 3 | . . . . . . . . . 24 . . . . . . . . . . . . . . Level 5 . | . . . . . . . . . . . . . . . . . . . . . . . . High Security . | . . . . . . . . . . . . . . . . . . . . . . . . Max Security . | . . . . . . . . . . . . . . . . . . . . . . . . Sterilizations 1 | . . . . . . . . . . . . . . . . 1 . . . . . . . Peak Influence 1552 | . 197 65 255 121 . 164 674 304 1552 932 . . . . 190 117 60 89 261 208 . . . Initial 814 | . . 13 17 91 . . . 304 203 814 . . . . 25 77 60 21 . 112 . . . Average 330 | . 65 19 108 60 . 62 412 157 833 840 . . . . 114 93 52 32 135 117 . . . Influence Increases 7943 | . 434 85 784 263 . 263 1302 516 1449 602 245 100 . 325 241 40 4 335 371 399 80 105 . Destroy 0b10 Robot/C 4580 | . 220 60 500 180 . 180 780 320 700 280 180 100 . 200 140 40 . 160 240 140 60 100 . Destroy 0b10 Robot/NC 425 | . 55 . 65 15 . 10 135 5 . 65 5 . . . 10 . . 20 10 15 10 5 . Destroy Leader 852 | . 50 10 136 30 . 30 196 110 40 72 30 . . 20 22 . . 22 20 54 10 . . Allied During Kill 177 | . . . . 36 . . . . 82 10 . . . . . . . 35 14 . . . . Successful Hack 183 | . 30 . 32 . . . 14 3 12 4 . . . . 8 . 4 49 8 19 . . . Disable Machine 435 | . 75 . 15 . . 15 30 15 60 75 . . . . 15 . . 30 15 90 . . . Anti-Garrison Action 450 | . . . . . . . . . 450 . . . . . . . . . . . . . . Destroy Structure 406 | . 4 . 6 2 . 28 72 33 75 66 . . . . 16 . . 4 64 36 . . . Partial Spotted 30 | . . . . . . . . . . . . . . . 15 . . 15 . . . . . Lose Combat Pursuer 405 | . . 15 30 . . . 75 30 30 30 30 . . 105 15 . . . . 45 . . . Influence Decreases 7943 | . 398 76 594 498 . 263 632 896 187 1252 565 302 380 283 172 34 77 378 171 483 187 115 . Entered New Map 2481 | . . 23 28 144 . . . 366 87 738 335 112 380 . 17 34 57 23 1 89 45 2 . Time Decay 5026 | . 398 53 546 334 . 263 579 380 . 494 230 190 . 283 155 . 20 302 170 374 142 113 . Lost Part 20 | . . . 20 . . . . . . . . . . . . . . . . . . . . Lost Ally 213 | . . . . 20 . . . . 100 20 . . . . . . . 53 . 20 . . . Purge Threat 203 | . . . . . . . 53 150 . . . . . . . . . . . . . . . Squads Dispatched 38 | . 1 . 3 . . . 9 10 . 5 . . . . 1 . . 1 2 6 . . . Investigation 6 | . . . 2 . . . 2 . . . . . . . . . . . 2 . . . . Extermination 8 | . . . . . . . . 1 . 3 . . . . 1 . . . . 3 . . . Reinforcement 13 | . 1 . 1 . . . 5 3 . . . . . . . . . 1 . 2 . . . Assault 4 | . . . . . . . 2 . . 2 . . . . . . . . . . . . . Garrison 7 | . . . . . . . . 6 . . . . . . . . . . . 1 . . . Intercept . | . . . . . . . . . . . . . . . . . . . . . . . . Searches Triggered . | . . . . . . . . . . . . . . . . . . . . . . . . Construction Impeded 2 | . . . . . . . 1 1 . . . . . . . . . . . . . . . Haulers Reinforced 1 | . . . . . . . . . . . . . . . . . . . . 1 . . . Active Scanning Responses . | . . . . . . . . . . . . . . . . . . . . . . . . Cargo Convoy Interrupts . | . . . . . . . . . . . . . . . . . . . . . . . . Stealth | -11 -10 -10 -9 -9 -9 -8 -8 -7 -7 -7 -7 -7 -7 -6 -6 -6 -5 -5 -5 -4 -4 -4 -4 --------- Run | Yrd Mat Min Mat Min Exi Min Mat Fac Gar Fac Low Low Dat Pro Fac DSF Fac Ext Cet Fac Upp Upp War Distress Signals 14 | . 2 . . . . . 4 2 . 1 . . . . . . . 3 1 . . . 1 Communications Jammed 38 | . . . . . . . . . . 2 1 . . . . . . 2 . 1 . . 32 Distress Signals 37 | . . . . . . . . . . 2 . . . . . . . 2 . 1 . . 32 Times Spotted 339 | . 24 4 33 8 . 6 60 16 31 21 8 9 . 15 10 3 1 10 17 18 3 5 37 Peak Tracking Total 20 | . 8 3 3 3 . 3 7 3 7 3 2 3 . 3 4 2 1 3 5 6 1 2 20 Tactical Retreats 25 | . . 1 2 . . . 4 2 2 2 2 . . 4 1 . . . . 2 . . 3 Traps | -11 -10 -10 -9 -9 -9 -8 -8 -7 -7 -7 -7 -7 -7 -6 -6 -6 -5 -5 -5 -4 -4 -4 -4 ------- Run | Yrd Mat Min Mat Min Exi Min Mat Fac Gar Fac Low Low Dat Pro Fac DSF Fac Ext Cet Fac Upp Upp War Traps Triggered 23 | . 3 . . . . . 2 . 9 5 . . . . . 1 . 2 . . . . 1 Indirectly 1 | . . . . . . . . . 1 . . . . . . . . . . . . . . Trap Hack Attempts . | . . . . . . . . . . . . . . . . . . . . . . . . Triggered . | . . . . . . . . . . . . . . . . . . . . . . . . Disarmed . | . . . . . . . . . . . . . . . . . . . . . . . . Reprogrammed . | . . . . . . . . . . . . . . . . . . . . . . . . Reused . | . . . . . . . . . . . . . . . . . . . . . . . . Traps Extracted . | . . . . . . . . . . . . . . . . . . . . . . . . Installed . | . . . . . . . . . . . . . . . . . . . . . . . . Triggered . | . . . . . . . . . . . . . . . . . . . . . . . . Machines | -11 -10 -10 -9 -9 -9 -8 -8 -7 -7 -7 -7 -7 -7 -6 -6 -6 -5 -5 -5 -4 -4 -4 -4 ---------- Run | Yrd Mat Min Mat Min Exi Min Mat Fac Gar Fac Low Low Dat Pro Fac DSF Fac Ext Cet Fac Upp Upp War Machines Disabled 36 | . 5 . 1 . . 1 2 1 8 5 . . . . 1 . . 2 2 6 1 1 . Max in Single Turn 5 | . 1 . 1 . . 1 1 1 1 2 . . . . 1 . . 1 2 5 1 1 . Garrison Access 2 | . . . . . . . 1 . . . . . . . . . . . . 1 . . . Garrison Relay 4 | . . . . . . . . . 4 . . . . . . . . . . . . . . Energy Cycler 2 | . . . . . . . . . . . . . . . . . . 2 . . . . . Machines Repaired . | . . . . . . . . . . . . . . . . . . . . . . . . Machines Dismantled . | . . . . . . . . . . . . . . . . . . . . . . . . Machines Sabotaged . | . . . . . . . . . . . . . . . . . . . . . . . . Overloaded Fab Kills . | . . . . . . . . . . . . . . . . . . . . . . . . Hacking | -11 -10 -10 -9 -9 -9 -8 -8 -7 -7 -7 -7 -7 -7 -6 -6 -6 -5 -5 -5 -4 -4 -4 -4 --------- Run | Yrd Mat Min Mat Min Exi Min Mat Fac Gar Fac Low Low Dat Pro Fac DSF Fac Ext Cet Fac Upp Upp War Machines Accessed 71 | . 8 . 6 . 1 . 9 2 3 5 . . 4 . 3 . 2 9 3 5 1 1 9 Terminals 51 | . 8 . 5 . . . 8 1 3 5 . . . . 3 . 2 9 3 4 . . . Fabricators . | . . . . . . . . . . . . . . . . . . . . . . . . Repair Stations 1 | . . . . . . . 1 . . . . . . . . . . . . . . . . Recycling Units 1 | . . . 1 . . . . . . . . . . . . . . . . . . . . Scanalyzers . | . . . . . . . . . . . . . . . . . . . . . . . . Garrison Access 2 | . . . . . . . . 1 . . . . . . . . . . . 1 . . . Total Hacks 178 | . 21 . 15 . 1 . 24 4 5 10 . . 32 . 4 . 5 16 10 11 1 1 18 Successful 101 | . 7 . 6 . 1 . 13 3 1 2 . . 32 . 3 . 1 8 1 3 1 1 18 Failed 77 | . 14 . 9 . . . 11 1 4 8 . . . . 1 . 4 8 9 8 . . . Catastrophic 20 | . 1 . 3 . . . 6 . 1 3 . . . . . . 1 1 1 3 . . . Database Lockouts . | . . . . . . . . . . . . . . . . . . . . . . . . Manual 26 | . 4 . 6 . 1 . 5 . . 2 . . . . . . . . 2 5 . . 1 Terminals 117 | . 21 . 13 . . . 21 3 5 10 . . . . 4 . 5 16 10 9 . . . Fabricators . | . . . . . . . . . . . . . . . . . . . . . . . . Repair Stations 3 | . . . . . . . 3 . . . . . . . . . . . . . . . . Recycling Units 2 | . . . 2 . . . . . . . . . . . . . . . . . . . . Scanalyzers . | . . . . . . . . . . . . . . . . . . . . . . . . Garrison Access 3 | . . . . . . . . 1 . . . . . . . . . . . 2 . . . Terminal Hacks 96 | . 7 . 5 . 1 . 11 2 1 2 . . 32 . 3 . 1 8 1 2 1 1 18 Record 21 | . . . . . . . . . . . . . 11 . . . . 2 . 1 . . 7 Part Schematic 14 | . . . . . . . . . . . . . 12 . . . . 2 . . . . . Robot Schematic 6 | . . . . . . . . . . . . . 6 . . . . . . . . . . Robot Analysis 1 | . . . . . . . 1 . . . . . . . . . . . . . . . . Prototype ID Bank 18 | . 1 . 1 . . . 2 . . . . . 3 . . . . 1 . . . . 10 Open Door 5 | . . . . . . . . . . . . . . . . . . 1 1 . 1 1 1 Open DSF 3 | . . . . . . . . . . 1 . . . . 1 . 1 . . . . . . Branch Access Points 5 | . 1 . 1 . . . 1 . . . . . . . . . . 1 . 1 . . . Emergency Access Points 3 | . 1 . . . . . . . 1 . . . . . 1 . . . . . . . . Alert Level 5 | . 2 . . . . . 2 1 . . . . . . . . . . . . . . . Unreport Threat 3 | . . . . . . . 2 1 . . . . . . . . . . . . . . . Locate Traps 5 | . 1 . 1 . . . 1 . . 1 . . . . . . . 1 . . . . . Dispatch Records 1 | . . . . . . . 1 . . . . . . . . . . . . . . . . Maintenance Status 1 | . . . 1 . . . . . . . . . . . . . . . . . . . . Patrol Status 1 | . . . 1 . . . . . . . . . . . . . . . . . . . . Hauler Manifests 1 | . 1 . . . . . . . . . . . . . . . . . . . . . . Zone Layout 2 | . . . . . . . 1 . . . . . . . 1 . . . . . . . . Proto ID Catalog 1 | . . . . . 1 . . . . . . . . . . . . . . . . . . Fabricator Hacks . | . . . . . . . . . . . . . . . . . . . . . . . . Repair Station Hacks 2 | . . . . . . . 2 . . . . . . . . . . . . . . . . Scan Component 1 | . . . . . . . 1 . . . . . . . . . . . . . . . . Repair 1 | . . . . . . . 1 . . . . . . . . . . . . . . . . Recycling Unit Hacks . | . . . . . . . . . . . . . . . . . . . . . . . . Scanalyzer . | . . . . . . . . . . . . . . . . . . . . . . . . Garrison Access Hacks 2 | . . . . . . . . 1 . . . . . . . . . . . 1 . . . Unlock Access 1 | . . . . . . . . 1 . . . . . . . . . . . . . . . Seal Access 1 | . . . . . . . . . . . . . . . . . . . . 1 . . . Unauthorized Hacks 1 | . . . 1 . . . . . . . . . . . . . . . . . . . . Terminals . | . . . . . . . . . . . . . . . . . . . . . . . . Fabricators . | . . . . . . . . . . . . . . . . . . . . . . . . Repair Stations . | . . . . . . . . . . . . . . . . . . . . . . . . Recycling Units 1 | . . . 1 . . . . . . . . . . . . . . . . . . . . Monitor 1 | . . . 1 . . . . . . . . . . . . . . . . . . . . Scanalyzers . | . . . . . . . . . . . . . . . . . . . . . . . . Garrison Access . | . . . . . . . . . . . . . . . . . . . . . . . . Data Cores Recovered 4 | . 1 . . . . . . . . 1 . . . . . . . 1 . 1 . . . Used 3 | . 1 . . . . . . . . 1 . . . . . . . 1 . . . . . Hacking Detections 47 | . 8 . 6 . . . 9 1 2 4 . . . . 2 . 1 7 2 5 . . . Full Trace Events 7 | . 1 . 1 . . . 2 . 1 . . . . . . . . . 2 . . . . Feedback Events . | . . . . . . . . . . . . . . . . . . . . . . . . Feedback Blocked . | . . . . . . . . . . . . . . . . . . . . . . . . Robot Schematics Acquired 6 | . . . . . . . . . . . . . 6 . . . . . . . . . . Robots Built . | . . . . . . . . . . . . . . . . . . . . . . . . Authchips . | . . . . . . . . . . . . . . . . . . . . . . . . Time . | . . . . . . . . . . . . . . . . . . . . . . . . Total Robot Build Rating . | . . . . . . . . . . . . . . . . . . . . . . . . Part Schematics Acquired 14 | . . . . . . . . . . . . . 12 . . . . 2 . . . . . Parts Built . | . . . . . . . . . . . . . . . . . . . . . . . . Authchips . | . . . . . . . . . . . . . . . . . . . . . . . . Time . | . . . . . . . . . . . . . . . . . . . . . . . . Total Part Build Rating . | . . . . . . . . . . . . . . . . . . . . . . . . Parts Repaired 1 | . . . . . . . 1 . . . . . . . . . . . . . . . . Time 38 | . . . . . . . 38 . . . . . . . . . . . . . . . . Parts Recycled . | . . . . . . . . . . . . . . . . . . . . . . . . Recycled Matter . | . . . . . . . . . . . . . . . . . . . . . . . . Retrieved Matter . | . . . . . . . . . . . . . . . . . . . . . . . . Retrieved Components . | . . . . . . . . . . . . . . . . . . . . . . . . Parts Scanalyzed . | . . . . . . . . . . . . . . . . . . . . . . . . Part Schematics Acquired . | . . . . . . . . . . . . . . . . . . . . . . . . Parts Damaged . | . . . . . . . . . . . . . . . . . . . . . . . . Bothacking | -11 -10 -10 -9 -9 -9 -8 -8 -7 -7 -7 -7 -7 -7 -6 -6 -6 -5 -5 -5 -4 -4 -4 -4 ------------ Run | Yrd Mat Min Mat Min Exi Min Mat Fac Gar Fac Low Low Dat Pro Fac DSF Fac Ext Cet Fac Upp Upp War Used RIF Installer . | . . . . . . . . . . . . . . . . . . . . . . . . Robots Hacked . | . . . . . . . . . . . . . . . . . . . . . . . . Non-combat . | . . . . . . . . . . . . . . . . . . . . . . . . Combat . | . . . . . . . . . . . . . . . . . . . . . . . . Robot Hacks Applied . | . . . . . . . . . . . . . . . . . . . . . . . . Relay Couplers Released 10 | . . . . . . . 2 . 8 . . . . . . . . . . . . . . Machine Destruction 10 | . . . . . . . 2 . 8 . . . . . . . . . . . . . . Fabnet Peak Effective % . | . . . . . . . . . . . . . . . . . . . . . . . . Robots Rewired 12 | . . . . . . . . . 4 . . . . . . . . 8 . . . . . Allies Hacked 2 | . . . . . . . . . . . . . . . . . . 2 . . . . . Hacks Repelled . | . . . . . . . . . . . . . . . . . . . . . . . . Allies | -11 -10 -10 -9 -9 -9 -8 -8 -7 -7 -7 -7 -7 -7 -6 -6 -6 -5 -5 -5 -4 -4 -4 -4 -------- Run | Yrd Mat Min Mat Min Exi Min Mat Fac Gar Fac Low Low Dat Pro Fac DSF Fac Ext Cet Fac Upp Upp War Total Allies 22 | . . . . 4 . . . . 8 . . . . . . . . 10 . . . . . Largest Group 10 | . . . . 4 1 1 . . 6 1 . . . . . . . 10 1 1 . . . Highest-Rated Group 301 | . . . . 71 8 8 . . 222 95 . . . . . . . 301 20 20 . . . Highest-Rated Ally 95 | . . . . 31 8 8 . . 95 95 . . . . . . . 39 20 20 . . . Initial Warlord ECA Mod 172 | . . . . . . . . . . 9 9 9 9 8 8 8 17 17 17 16 15 15 15 Warlord Squad Rendezvous 1 | . . . . . . . . . . . . . . . . . . . . 1 . . . Dakka 1 | . . . . . . . . . . . . . . . . . . . . 1 . . . Total Orders . | . . . . . . . . . . . . . . . . . . . . . . . . Ally Attacks 106 | . . . . 22 . 1 . . 57 3 . . . . . . . 23 . . . . . Total Damage 1694 | . . . . 318 . . . . 968 87 . . . . . . . 321 . . . . . Kills 24 | . . . . 7 . . . . 13 1 . . . . . . . 3 . . . . . Allies Corrupted 1 | . . . . . . . . . . . . . . . . . . 1 . . . . . Allies Melted . | . . . . . . . . . . . . . . . . . . . . . . . . Intel | -11 -10 -10 -9 -9 -9 -8 -8 -7 -7 -7 -7 -7 -7 -6 -6 -6 -5 -5 -5 -4 -4 -4 -4 ------- Run | Yrd Mat Min Mat Min Exi Min Mat Fac Gar Fac Low Low Dat Pro Fac DSF Fac Ext Cet Fac Upp Upp War Active Infowar (turns) 17780 | . 731 225 1736 752 361 668 2483 898 2087 1309 481 386 93 786 337 134 57 759 356 864 302 680 1295 Optics 4657 | . 731 225 1736 752 361 668 184 . . . . . . . . . . . . . . . . Terrain 2306 | . . . . 172 141 . . . . . . . . . . . . . . . 215 484 1294 Structural 7772 | . . . 1548 752 361 668 2483 898 1062 . . . . . . . . . . . . . . Jamming 8864 | . . . . . . . . . 1025 1309 481 386 93 786 337 134 57 759 356 864 302 680 1295 Robot Analysis Total 1 | . . . . . . . 1 . . . . . . . . . . . . . . . . Derelict Logs Recovered 8 | . . . . 2 . . . . . . 1 1 . 2 . . . . . . . 2 . Drone Launches . | . . . . . . . . . . . . . . . . . . . . . . . . Drone Recoveries . | . . . . . . . . . . . . . . . . . . . . . . . . Exploration | -11 -10 -10 -9 -9 -9 -8 -8 -7 -7 -7 -7 -7 -7 -6 -6 -6 -5 -5 -5 -4 -4 -4 -4 ------------- Run | Yrd Mat Min Mat Min Exi Min Mat Fac Gar Fac Low Low Dat Pro Fac DSF Fac Ext Cet Fac Upp Upp War Turns Passed 18276 | 76 1127 225 1760 752 361 668 2483 898 2087 1309 481 386 93 786 337 134 57 759 356 864 302 680 1295 Spaces Moved 12126 | 45 592 118 841 535 298 449 1412 371 1016 883 366 268 81 595 272 105 74 559 250 778 403 829 986 Core 2 | 2 . . . . . . . . . . . . . . . . . . . . . . . Treads 1711 | 43 592 118 841 117 . . . . . . . . . . . . . . . . . . . Legs 1378 | . . . . 418 298 449 213 . . . . . . . . . . . . . . . . Wheels . | . . . . . . . . . . . . . . . . . . . . . . . . Hover 9035 | . . . . . . . 1199 371 1016 883 366 268 81 595 272 105 74 559 250 778 403 829 986 Flight . | . . . . . . . . . . . . . . . . . . . . . . . . Fastest Speed 50 | 50 160 160 145 120 120 120 106 106 105 105 108 108 108 108 101 71 71 71 71 59 59 59 120 Average Speed 114 | 155 160 160 154 125 120 120 108 155 164 123 108 108 108 108 103 91 71 71 83 66 59 68 125 Slowest Speed 240 | 160 160 160 225 190 120 120 240 166 171 165 108 108 108 108 108 144 71 71 141 141 59 131 131 Overloaded Moves . | . . . . . . . . . . . . . . . . . . . . . . . . Propulsion Burnouts . | . . . . . . . . . . . . . . . . . . . . . . . . Robots Hopped . | . . . . . . . . . . . . . . . . . . . . . . . . Potential Cave-ins . | . . . . . . . . . . . . . . . . . . . . . . . . Cave-ins Triggered 1 | . . . . . . . . . . . . . . . . . . . . 1 . . . Exploration Rate (%) 61 | 4 88 43 91 94 79 84 92 7 94 33 65 45 72 77 10 79 4 72 90 25 61 72 90 Regions Visited 23 Branch Regions 13 Pre-discovered Areas 6 | . . . . 1 . . . . . . 1 1 1 1 . . . . . . . 1 . Known Exits Taken 6 | . 1 . 1 . . . . 1 . . . . . . 1 . . 1 . 1 . . . Unknown Exits Taken 15 | 1 . 1 . 1 1 1 1 . . 1 1 1 1 1 . . 1 . 1 . 1 1 . Scrap Searched 15 | . . . . 1 . 1 . . . . 2 2 . 5 . . . . . . 2 2 . Spaces Dug 20 | . . . . 3 . . 9 . . . . . . . 1 . . . . 7 . . . Terrain Destroyed 328 | . 3 . 2 3 . 49 69 35 9 35 13 1 . 25 19 . . 2 39 18 1 5 . Melee 20 | . . . . 3 . . 9 . . . . . . . 1 . . . . 7 . . . Projectile 43 | . . . . . . . . 8 1 17 4 1 . 1 . . . 2 . 3 1 5 . AOE 265 | . 3 . 2 . . 49 60 27 8 18 9 . . 24 18 . . . 39 8 . . . Terrain Rammed . | . . . . . . . . . . . . . . . . . . . . . . . . Walls Destroyed . | . . . . . . . . . . . . . . . . . . . . . . . . Machines Disabled . | . . . . . . . . . . . . . . . . . . . . . . . . Actions | -11 -10 -10 -9 -9 -9 -8 -8 -7 -7 -7 -7 -7 -7 -6 -6 -6 -5 -5 -5 -4 -4 -4 -4 --------- Run | Yrd Mat Min Mat Min Exi Min Mat Fac Gar Fac Low Low Dat Pro Fac DSF Fac Ext Cet Fac Upp Upp War Total 15077 | 49 673 136 1121 594 300 515 2076 595 1299 1007 422 323 86 696 306 136 78 870 363 1048 439 915 1030 Wait 1427 | . 16 5 113 32 . 25 433 125 30 49 21 13 . 61 10 2 5 162 60 213 15 33 4 Move 12104 | 44 591 117 840 534 297 448 1411 371 1015 882 365 267 80 594 271 104 73 558 249 777 402 828 986 Hop . | . . . . . . . . . . . . . . . . . . . . . . . . Pick Up 24 | . 2 . 6 2 . . 1 . 2 2 2 . . 1 . . . 1 1 1 1 1 1 Fast Attach 33 | 5 3 . 3 1 . . 4 1 1 1 1 . 3 2 1 1 . . 1 2 . 1 2 Attach 3 | . . . 1 . . . . . 1 . . . . 1 . . . . . . . . . Detach 2 | . . . . . . . . . . . . . . 2 . . . . . . . . . Swap 98 | . . . 8 5 3 1 12 4 16 6 1 1 . . 6 4 . 2 7 6 1 3 12 Drop 48 | . 2 . 6 2 . . 4 2 3 4 2 . 3 1 3 3 . 1 3 2 1 2 4 Fire 675 | . 49 9 99 4 . 31 131 56 62 45 18 19 . 24 12 3 . 35 21 25 11 12 9 Melee 48 | . . . . 7 . 3 18 . . . . . . . 1 . . . . 7 . . 12 Ram . | . . . . . . . . . . . . . . . . . . . . . . . . Kick 1 | . . . . . . 1 . . . . . . . . . . . . . . . . . Crush 7 | . 3 . 4 . . . . . . . . . . . . . . . . . . . . Escape Stasis 109 | . . . . . . . . . 83 . . . . . . 13 . 13 . . . . . Rewire 100 | . . . . . . . . . 22 . . . . . . . . 78 . . . . . Trap . | . . . . . . . . . . . . . . . . . . . . . . . . Miscellaneous 398 | . 7 5 41 7 . 6 62 36 64 18 12 23 . 10 2 6 . 20 21 15 8 35 . Route ------- -11/Scrapyard -10/Materials (discovered 5 exits: *Mat x3 / *Min x2) -10/Mines -9/Materials (discovered 4 exits: *Mat x2 / *Min x2) -9/Mines (discovered 3 exits: *Mat x2 / *Exi) -9/Exiles (discovered 2 exits: [*Min x2]) -8/Mines -8/Materials (discovered 2 exits: *Fac x2) -7/Factory -7/Garrison (discovered 3 exits: *Fac x3) -7/Factory (discovered 3 exits: *Fac / [*Low x2]) -7/Lower Caves -7/Lower Caves -7/Data Miner -6/Proximity Caves -6/Factory -6/DSF -5/Factory -5/Extension (discovered 3 exits: *Fac x2 / *Cet) -5/Cetus (discovered 2 exits: *Fac / [*Arc]) -4/Factory (discovered 2 exits: *Upp x2) -4/Upper Caves -4/Upper Caves (discovered 2 exits: [*Res] / *War) -4/Warlord (discovered 1 exit: [*Pro]) History --------- Turn | Location | Event 1 | -11/Scrapyard | Upgraded with Propulsion slot (x1) 1 | -11/Scrapyard | Upgraded with Utility slot (x1) 1 | -11/Scrapyard | Upgraded with Weapon slot (x1) 6 | -11/Scrapyard | Discovered new exit (range 16) 77 | -11/Scrapyard | Entered Materials 100 | -10/Materials | Identified exit to Mines 306 | -10/Materials | Build established: Mutant 359 | -10/Materials | Discovered new exit (range 13) 510 | -10/Materials | Discovered new exit (range 20) 988 | -10/Materials | Discovered new exit (range 19) 1082 | -10/Materials | Reached level 2 1204 | -10/Materials | Entered Mines 1204 | -10/Mines | Upgraded with Utility slot (x1) 1391 | -10/Mines | Discovered new exit (range 13) 1429 | -10/Mines | Entered Materials 1431 | -9/Materials | Reached level 3 1533 | -9/Materials | Reached level 4 1546 | -9/Materials | Discovered new exit (range 19) 1723 | -9/Materials | Discovered new exit (range 16) 2066 | -9/Materials | Discovered new exit (range 20) 2268 | -9/Materials | Discovered new exit (range 12) 2542 | -9/Materials | Reached level 5 2859 | -9/Materials | Upgraded with Weapon slot (x1) 3128 | -9/Materials | Identified exit to Mines 3140 | -9/Materials | Build established: Gunner 3189 | -9/Materials | Entered Mines 3191 | -9/Mines | Reached level 6 3193 | -9/Mines | Met a Derelict bent on vengeance 3217 | -9/Mines | Learned 4 Materials zone layouts 3268 | -9/Mines | Assembled infested the area 3273 | -9/Mines | Assisted by a Guerilla fighting off Assembled 3326 | -9/Mines | Assisted by bots powering up and referring to "LRC-V3" 3443 | -9/Mines | Discovered new exit (range 16) 3452 | -9/Mines | Received a Rocket Launcher from a helpful Derelict 3497 | -9/Mines | Received a Mining Laser from a helpful Derelict 3611 | -9/Mines | Build established: Mutant 3701 | -9/Mines | Reached level 7 3767 | -9/Mines | Upgraded with Utility slot (x1) 3782 | -9/Mines | Discovered new exit (range 7) 3799 | -9/Mines | Learned location of Storage (-7) 3923 | -9/Mines | Discovered new exit (range 10) 3931 | -9/Mines | Deemed a non-threat by the Exiles lab entrance 3941 | -9/Mines | Entered Exiles 3941 | -9/Exiles | Accompanied by 1 ally 3958 | -9/Exiles | Discovered new exit (range 18) 3973 | -9/Exiles | Met 8R-AWN 3993 | -9/Exiles | Met EX-HEX 4025 | -9/Exiles | Met EX-BIN 4042 | -9/Exiles | Aligned with FarCom system 4043 | -9/Exiles | Given EX-Vault access code 4072 | -9/Exiles | Opened EX-Vault 4075 | -9/Exiles | Build established: Scavenger-Mutant 4082 | -9/Exiles | Found Superbattery 4107 | -9/Exiles | Warned to stay clear of 0b10 Research branches 4138 | -9/Exiles | Met EX-DEC 4180 | -9/Exiles | Visited The Gauntlet 4293 | -9/Exiles | Discovered new exit (range 10) 4302 | -9/Exiles | Left Exiles lab with Superbattery 4302 | -9/Exiles | Entered Mines 4302 | -8/Mines | Accompanied by 1 ally 4426 | -8/Mines | Reached level 8 4756 | -8/Mines | Found a Scrap Suit stashed away for nefarious purposes 4763 | -8/Mines | Build established: Skirmisher 4831 | -8/Mines | Discovered new exit (range 5) 4970 | -8/Mines | Entered Materials 4972 | -8/Materials | Reached level 9 5298 | -8/Materials | Discovered new exit (range 3) 5347 | -8/Materials | Build established: Assassin 5366 | -8/Materials | Reached level 10 5616 | -8/Materials | Repaired Hardlight Generator 5789 | -8/Materials | Reached level 11 6054 | -8/Materials | Discovered new exit (range 9) 7083 | -8/Materials | Reached level 12 7370 | -8/Materials | Core integrity fell below 50% 7453 | -8/Materials | Entered Factory 7455 | -7/Factory | Reached level 13 7762 | -7/Factory | Core integrity fell below 50% 7762 | -7/Factory | Garrison activated, responded to threat 7983 | -7/Factory | Build established: Skirmisher 8013 | -7/Factory | Upgraded with Weapon slot (x1) 8088 | -7/Factory | Garrison activated, responded to threat 8164 | -7/Factory | Reached level 14 8351 | -7/Factory | Identified exit to Garrison 8351 | -7/Factory | Entered Garrison 8429 | -7/Garrison | Reached level 15 8451 | -7/Garrison | Triggered checkpoint 8455 | -7/Garrison | Destroyed 7 combat bots 8563 | -7/Garrison | Discovered new exit (range 8) 8631 | -7/Garrison | Triggered checkpoint 8699 | -7/Garrison | Garrison Relay disabled 8775 | -7/Garrison | Triggered checkpoint 8907 | -7/Garrison | Triggered checkpoint 9033 | -7/Garrison | Discovered new exit (range 15) 9277 | -7/Garrison | Discovered new exit (range 11) 9315 | -7/Garrison | H-XX Assembler disabled 9475 | -7/Garrison | Triggered checkpoint 9492 | -7/Garrison | Garrison Relay disabled 9517 | -7/Garrison | Rescued a captive Derelict 9517 | -7/Garrison | Rescued a captive Derelict 9678 | -7/Garrison | Build established: Gunner 9904 | -7/Garrison | Reached level 16 9932 | -7/Garrison | Found embedded Infiltrators 9989 | -7/Garrison | Garrison Relay disabled 10178 | -7/Garrison | Lost 4 allies 10243 | -7/Garrison | Upgraded with Propulsion slot (x1) 10278 | -7/Garrison | Triggered checkpoint 10293 | -7/Garrison | Upgraded with Power slot (x1) 10438 | -7/Garrison | Entered Factory 10438 | -7/Factory | Accompanied by 1 ally 10738 | -7/Factory | Identified exit to DSF 10838 | -7/Factory | First assault squad dispatched 10978 | -7/Factory | Upgraded with Utility slot (x1) 11263 | -7/Factory | Discovered new exit (range 5) 11378 | -7/Factory | Discovered new exit (range 18) 11739 | -7/Factory | Discovered new exit (range 7) 11747 | -7/Factory | Entered Lower Caves 11747 | -7/Lower Caves | Reached level 17 11762 | -7/Lower Caves | Met a Warlord Commander 11763 | -7/Lower Caves | Learned location of Warlord (-4) 11764 | -7/Lower Caves | Warlord Commander delivered Encrypted Comm Array 11777 | -7/Lower Caves | Upgraded with Utility slot (x1) 11777 | -7/Lower Caves | Found Encrypted Comm Array 11792 | -7/Lower Caves | Learned Factory trap positions 11983 | -7/Lower Caves | Attracted the attention of an 0b10 checkpoint 12212 | -7/Lower Caves | Discovered new exit (range 10) 12228 | -7/Lower Caves | Entered another Lower Caves area 12308 | -7/Lower Caves | Encountered a Warlord checkpoint 12383 | -7/Lower Caves | Ambushed by wild Derelicts 12512 | -7/Lower Caves | Attracted the attention of an 0b10 checkpoint 12552 | -7/Lower Caves | Discovered new exit (range 12) 12614 | -7/Lower Caves | Entered Data Miner 12614 | -7/Data Miner | Discovered new exit (range 6) 12633 | -7/Data Miner | Met Data Miner 12655 | -7/Data Miner | Learned location of Section 7 (-2) 12655 | -7/Data Miner | Acquired the access code to Warlord's prototype stash 12674 | -7/Data Miner | Received God Mode back door access code from Data Miner 12707 | -7/Data Miner | Entered Proximity Caves 12731 | -6/Proximity Caves | Reached level 18 13005 | -6/Proximity Caves | Learned Factory trap positions 13154 | -6/Proximity Caves | Learned location of Extension (-5) 13371 | -6/Proximity Caves | Discovered new exit (range 16) 13377 | -6/Proximity Caves | Attracted the attention of an 0b10 checkpoint 13493 | -6/Proximity Caves | Entered Factory 13494 | -6/Factory | Loaded intel: 90 trap records 13588 | -6/Factory | Reached level 19 13827 | -6/Factory | Identified exit to DSF 13830 | -6/Factory | Entered DSF 13830 | -6/DSF | Encountered a pitched battle between 0b10 and Warlord forces 13894 | -6/DSF | Sterilization system engaged 13914 | -6/DSF | Ambient heat levels rising (+10) 13929 | -6/DSF | Ambient heat levels rising (+10) 13929 | -6/DSF | Upgraded with Propulsion slot (x1) 13933 | -6/DSF | Lost 6 allies 13943 | -6/DSF | Discovered new exit (range 13) 13944 | -6/DSF | Ambient heat levels rising (+10) 13959 | -6/DSF | Ambient heat levels rising (+10) 13964 | -6/DSF | Entered Factory 13965 | -5/Factory | Loaded intel: 69 trap records 13966 | -5/Factory | Reached level 20 14011 | -5/Factory | Discovered new exit (range 15) 14021 | -5/Factory | Entered Extension 14028 | -5/Extension | Disrupted transfer network 14117 | -5/Extension | Energy Cycler disabled 14117 | -5/Extension | Rescued a captive Derelict 14117 | -5/Extension | Rescued a captive Derelict 14117 | -5/Extension | Rescued a captive Derelict 14117 | -5/Extension | Rescued a captive Derelict 14117 | -5/Extension | Rescued a captive Derelict 14118 | -5/Extension | Rescued a captive Derelict 14118 | -5/Extension | Rescued a captive Derelict 14119 | -5/Extension | Rescued a captive Derelict 14119 | -5/Extension | Rescued a captive Derelict 14119 | -5/Extension | Rescued a captive Derelict 14119 | -5/Extension | Rescued a captive Derelict 14122 | -5/Extension | Rescued a captive Derelict 14126 | -5/Extension | Reached level 21 14308 | -5/Extension | Identified exit to Cetus 14422 | -5/Extension | Spotted B-75 Beast 14488 | -5/Extension | Destroyed B-75 Beast 14504 | -5/Extension | Discovered new exit (range 18) 14515 | -5/Extension | Lost 9 allies 14535 | -5/Extension | Extracted ID and sensor layout for unrecognized location from A7's data core 14668 | -5/Extension | Discovered new exit (range 18) 14780 | -5/Extension | Entered Cetus 14780 | -5/Cetus | Accompanied by 1 ally 14789 | -5/Cetus | Spotted Cetus Guard 14789 | -5/Cetus | Spotted Cetus Guard 14791 | -5/Cetus | Spotted Cetus Guard 14791 | -5/Cetus | Spotted Cetus Guard 14799 | -5/Cetus | Destroyed Cetus Guard 14806 | -5/Cetus | Destroyed Cetus Guard 14808 | -5/Cetus | Destroyed Cetus Guard 14812 | -5/Cetus | Destroyed Cetus Guard 14968 | -5/Cetus | Discovered new exit (range 19) 14987 | -5/Cetus | Spotted Cetus Guard 14987 | -5/Cetus | Spotted Cetus Guard 14990 | -5/Cetus | Spotted Cetus Guard 14990 | -5/Cetus | Spotted Cetus Guard 14998 | -5/Cetus | Destroyed Cetus Guard 14998 | -5/Cetus | Destroyed Cetus Guard 14999 | -5/Cetus | Destroyed Cetus Guard 15004 | -5/Cetus | Destroyed Cetus Guard 15011 | -5/Cetus | Discovered new exit (range 18) 15022 | -5/Cetus | Reached level 22 15022 | -5/Cetus | Met Revision 17 15120 | -5/Cetus | System corruption reached 10% 15136 | -5/Cetus | Entered Factory 15136 | -4/Factory | Accompanied by 1 ally 15138 | -4/Factory | Reached level 23 15160 | -4/Factory | Upgraded with Propulsion slot (x1) 15278 | -4/Factory | Identified exit to Upper Caves 15407 | -4/Factory | Build established: Scavenger-Gunner 15610 | -4/Factory | Core integrity fell below 50% 15652 | -4/Factory | Joined by Warlord Dakka squad 15919 | -4/Factory | Garrison activated, responded to threat 15934 | -4/Factory | Crushed by falling debris 15983 | -4/Factory | Lost 3 allies 16000 | -4/Factory | Entered Upper Caves 16113 | -4/Upper Caves | Attracted the attention of an 0b10 checkpoint 16115 | -4/Upper Caves | Reached level 24 16293 | -4/Upper Caves | Discovered new exit (range 5) 16302 | -4/Upper Caves | Entered another Upper Caves area 16333 | -4/Upper Caves | Attracted the attention of an 0b10 outpost 16651 | -4/Upper Caves | Discovered new exit (range 5) 16682 | -4/Upper Caves | Learned Research security intel 16836 | -4/Upper Caves | Build established: Scout 16959 | -4/Upper Caves | Discovered new exit (range 7) 16982 | -4/Upper Caves | Entered Warlord 17043 | -4/Warlord | Discovered new exit (range 12) 17121 | -4/Warlord | System corruption cleaned by Quarantine Array 17153 | -4/Warlord | Build established: Skirmisher 17565 | -4/Warlord | Met Warlord 17590 | -4/Warlord | Warlord's base attacked by MAIN.C 17607 | -4/Warlord | Opened Warlord's prototype stash 17623 | -4/Warlord | Found Prototype Reactor 17623 | -4/Warlord | Identified Vortex Chain Reactor 17634 | -4/Warlord | Found Prototype Device 17634 | -4/Warlord | Identified Exp. Phase Shifter 17730 | -4/Warlord | Found Prototype Special Weapon 17730 | -4/Warlord | Identified RU-N14's Throwing Claymores v3 17889 | -4/Warlord | Found Prototype Energy Gun 17889 | -4/Warlord | Identified Vortex Rail 17912 | -4/Warlord | Build established: Tank 17940 | -4/Warlord | Warlord forces counterattacked 17973 | -4/Warlord | Upgraded with Weapon slot (x1) 18149 | -4/Warlord | Attacked by Warlord forces 18149 | -4/Warlord | Spotted CW-HXR(K) 18149 | -4/Warlord | Spotted RD-SB2(K) 18231 | -4/Warlord | Spotted Executioner 18255 | -4/Warlord | Spotted Executioner 18255 | -4/Warlord | Spotted B-86 Titan 18265 | -4/Warlord | Warlord base infiltrated, sounded retreat 18275 | -4/Warlord | Core integrity fell below 20% 18275 | -4/Warlord | Spotted Executioner 18277 | -4/Warlord | Destroyed by X-87 Electro with Compact HERF Cannon Last Messages --------------- 18266_ Slug penetrates G-67 Veteran. 18267_ Knocked back. 18267_ Slug penetrates Wall. 18271_ Penetrated by Slug. 18271_ Slug penetrates Blast Doors. 18274_ Critical hit (Burn: +37). 18274_ Slug penetrates Blast Doors. 18274_ Slug penetrates G-67 Veteran. 18275_ Penetrated by Slug. 18275_ Slug penetrates Reinforced Barrier. 18275_ Critical hit (Burn: +50). 18275_ Penetrated by Slug. 18276_ System corrupted: Matter fused (-7). 18276_ G-67 Veteran destroyed. 18276_ Slug penetrates G-67 Veteran. 18276_ G-73 Enforcer suffers critical hit (Destroy). 18277_ Penetrated by Slug. 18277_ Slug penetrates X-87 Electro. [Achievement: 20k Club] Map ----- +----------------------------------------------------+ | ?####?###?#???????????????????#????#?#???#????##?# | | ###?#?##?##?#?#????#??????????#???####???#???#???? | | #??##########?????###????#?????#?????###???#?##?#? | | #### ##??#??????#???????#??#?##??######?????### | | #### #####?#####??#?#????#???#?### #######???# | | #### #?#####?#????????????#???### #?##?##?## | | #??# ##??##?###??##?##?#???????# #??##??## | | ?###+#############?#?#???????????## ##?###?## | | ### + ##??##?###?????### ##??### | | # # ### """ #??????????#?#?#?# ##?#### | | #?# """ ###???##???#?###### ####?# | | ^ ### """ ###?#????##?#??#??### ^ ###?### | | ### ###?#?#?####???##?#### ###?### | | ##" """ ########??##?#??####### #??#### | | # ^ + """ #?###??#??#?########?## ##### | | # ^ ##" """ ######?####???####?##?# | | # ##" ##########?##?#######?## ### # | | # # #"+##"#+#######""##?#?############ ## | | ### #######""#######?##?##??#### ## | | ### #######""##?####?###?###?### # | | ### ####?##""##### #?############ # | | ##### ######;"";## #######?####### | | ##### #### ###;#;#" ;; ;; #?###?#??####### | | ##### # ; ""/== ;##########?###?## | | ##### # % !=[ [ " """""##????### | | ##### ; s*%@ !!%%! ""==[%=#?####?## | | ##### g %&hxg[!%%%%%!][=!%e%dd# ### | | /=% K % %*==g %* [=[%g%g!%b*i%!= | | ###"" % [%% h=% %%!!%=%!!=![%=E # | | #### !! % = %%=%==!%[*%#### ## | | ##### ; = !!%= !*[["#??## ## | | ; ; *=* "" """"#?### ## | | # # ! = #############?# ### | | ###; ;#####; ;#?###?###?##### ### | | #### BB"###?##""; ####??#?##??###?# ### | | ############# B #####?#""######??#?####?### ### | | ####?## #?#?###""#?#?###?#?#?##?#?# #### | | ####### ####?##""#?##??#???####??# ##### | | ### ## #?####?"##?#?###?#?#??### ###?# | | # #########??###??????##??# ###?## | | # #?##?????#?#####??#?##### ###??# | | # ###########?####???##???# ?#?#?# | | # #####?#??#???#??#?#???#? ??#?# | | ####+## #""#####??###?#????##???####? ?#?## | | ## #?##??#?#?#???????#?##?? #? ???# | | ?# ########??#????????#???????#?? ?## | | ## ##+""+####??#??????????????????????# ?## | | ###+#####+#" #??#?#?#???????? ?????????# # | | ## ##?#????????????????????#??# | | !! ## ####???#??#????#????? ?????### | +----------------------------------------------------+ Best States ------------- Heat Dissipation 104 Energy Generation 65 Energy Capacity 2250 Matter Stores 300 Matter Capacity 300 Sight Range 20 Terrain Scan Range 18 Terrain Scan Density 110 Jamming Range 16 Additional Mass Support 6 Resistance: KI 20 Resistance: TH 20 Propulsion Shielding 33 Utility Shielding 33 Phase Shifting 20 Evasion (%) 60 Recoil Reduction 2 Offensive Hacking 10 Item Schematics ----------------- Combat Drone Bay | -7/Data Miner | Free Lgt. Regenerative Plating | -7/Data Miner | Free Gravity Neutralizer | -7/Data Miner | Free Ion Burst Cannon | -7/Data Miner | Free Cld. Aerolev Unit | -7/Data Miner | Free Field Propulsion Drive | -7/Data Miner | Free Adv. System Shield | -7/Data Miner | Free Lrn. Proton Cannon | -7/Data Miner | Free Tesla Rifle | -7/Data Miner | Free Wave Gun | -7/Data Miner | Free Centrium Wheel | -7/Data Miner | Free Lrn. Sensor Array | -7/Data Miner | Free Force Lance | -5/Extension | Hacked Imp. Focal Shield | -5/Extension | Hacked Robot Schematics ------------------ L-41 Fighter | -7/Data Miner | Free H-55 Commando | -7/Data Miner | Free S-27 Virus | -7/Data Miner | Free A-15 Conveyor | -7/Data Miner | Free P-70 Sage | -7/Data Miner | Free W-25 Informer | -7/Data Miner | Free Fabricated ------------ Nothing Repaired ---------- Hardlight Generator | 36% | -8/Materials Alien Tech Used ----------------- None Achievements -------------- 20k Club A Powerful Ally? Can't Touch This Explorer Leap Before You Look No Signal Omniscient Cartographer Overkill Reappropriation The Oracle Total Silence Challenges ------------ None RPGLIKE | -11 -10 -10 -9 -9 -9 -8 -8 -7 -7 -7 -7 -7 -7 -6 -6 -6 -5 -5 -5 -4 -4 -4 -4 --------- Run | Yrd Mat Min Mat Min Exi Min Mat Fac Gar Fac Low Low Dat Pro Fac DSF Fac Ext Cet Fac Upp Upp War Levels Raised 23 | . 1 . 3 2 . 1 4 2 2 . 1 . . 1 1 . 1 1 1 1 1 . . XP Earned 38638 | 3000 1780 850 4820 1702 350 1625 5630 3436 3027 721 417 233 152 1246 1111 492 1500 1468 1041 2530 537 484 486 XP Spent 37370 | 2710 . 1420 4540 1100 . . 200 5490 1850 2100 7120 . . 1250 400 1420 . . . 6320 . 50 1400 Upgrades 72 | 11 . 4 12 1 . . 1 8 3 3 11 . . 1 1 3 . . . 11 . 1 1 Power Slot 1 | . . . . . . . . . 1 . . . . . . . . . . . . . . Propulsion Slot 4 | 1 . . . . . . . . 1 . . . . . . 1 . . . 1 . . . Utility Slot 5 | 1 . 1 . 1 . . . . . 1 1 . . . . . . . . . . . . Weapon Slot 4 | 1 . . 1 . . . . 1 . . . . . . . . . . . . . . 1 Core Integrity 12 | 4 . . 2 . . . . . . . 2 . . . . . . . . 4 . . . Heat Dissipation 8 | . . 2 . . . . . 1 . . 2 . . . . 2 . . . 1 . . . Energy Generation 2 | . . . 1 . . . . . 1 . . . . . . . . . . . . . . Energy Storage 1 | . . . 1 . . . . . . . . . . . . . . . . . . . . Mass Support 3 | . . . . . . . . . . 2 . . . . . . . . . 1 . . . Inventory Capacity 6 | 1 . 1 2 . . . . . . . . . . 1 . . . . . 1 . . . Sight Range 3 | 2 . . . . . . . . . . 1 . . . . . . . . . . . . Terrain Scan Density 1 | . . . . . . . . . . . . . . . . . . . . . . 1 . Ranged Accuracy 8 | 1 . . . . . . . 2 . . 5 . . . . . . . . . . . . Hack Attack % 2 | . . . . . . . 1 . . . . . . . 1 . . . . . . . . KI Resistance % 4 | . . . 2 . . . . 2 . . . . . . . . . . . . . . . TH Resistance % 4 | . . . 1 . . . . . . . . . . . . . . . . 3 . . . TH Damage % 4 | . . . 2 . . . . 2 . . . . . . . . . . . . . . . Protomatter Created 3998 | . 88 31 510 64 . 52 689 283 584 191 152 281 . 129 88 45 . 252 227 65 . 267 . Integrity Restored 8171 | . 144 93 874 145 . 132 1202 804 1253 368 248 478 . 207 29 100 . 384 442 321 186 761 . Core 6694 | . 144 93 802 53 . 132 1060 804 889 291 112 323 . 170 15 79 . 269 384 321 186 567 . Parts 1477 | . . . 72 92 . . 142 . 364 77 136 155 . 37 14 21 . 115 58 . . 194 . Protomatter Decayed 2533 | . . . 171 96 . 3 196 122 195 64 42 67 . . 18 333 . 441 1 81 . 146 557 Game ------ Seed ArmageddonBurstSplitter Manual? 0 Play Time 03:03:25 Cumulative 39.5 hours Start 2025.05.16 @ 16:20:44 End 2025.05.16 @ 22:00:40 Sessions 3 Manual Loads 0 Difficulty Rogue Special Mode Winter2019/RPGLIKE Game No. 45 Rogue 45 Adventurer 0 Explorer 0 Win Type - Total 0 Types 0/0/0/0/0/0/0/0/0/0 Lore% 45 Gallery% 31 Achievement% 35 Wizard Run 0 Options --------- Layout 1 ASCII 0 Keyboard 0 Movement Mouse Keybinds 0 Fullscreen 1 Font 48/Smallcaps Map View 50x35 Zoom Use 0% Tactical HUD 1 Map Filters NONE Filters NONE Steam 1 RUN: 261abe59-380d-49b0-842b-c9bd5542c9af